Workbook

Sheet Maand
A1: Invoer
A2: Geboortedatum dlnr | B2: 1986-01-01
A3: Datum aanvang deelneming | B3: 2017-01-09 | W3: Leeftijd | X3: Afgerond leeftijd | Z3: Leeftijd | AA3: Bedrag AP
A4: Datum einde deelneming | W4: =(YEAR(B3)-YEAR(B2))+((MONTH(B3)-MONTH(B2))/12)+((DAY(B3)-DAY(B2))/360) -> 31.02222222 | X4: =ROUNDDOWN(W4,0) -> 31 | Z4: 15 | AA4: € 6,032.00
A5: Regelingloon | B5: € 45,000.00
A6: Normuren per maand | B6: 156
A7: Franchise OP/NP | B7: € 11,829.00 | Z7: 16 | AA7: € 6,937.00
A8: Franchise AP | B8: =IFERROR(VLOOKUP(X4,Z4:AA13,2,FALSE),20108) -> € 20,108.00 | Z8: 17 | AA8: € 7,943.00
A9: Maximum pensioengevend salaris | B9: € 103,317.00 | Z9: 18 | AA9: € 9,149.00
A10: Premie % OP/OP | B10: 23.5% | Z10: 19 | AA10: € 10,557.00
A11: Premie % AP | B11: 0.5% | Z11: 20 | AA11: € 12,367.00
Z12: 21 | AA12: € 14,578.00
A13: OP/NP premie | Z13: 22 | AA13: € 17,092.00
A14: Maand | B14: Maand getal | C14: Genormeerd aantal dagen deelneming | D14: Verloonde uren voor regeling | E14: Normuren per maand | F14: Normuren deelneming | G14: Regelingloon | H14: Deeltijd regelingloon cumulatief | I14: Maandbedrag ORT | J14: Jaarbedrag ORT Cumulatief | K14: Definitieve deeltijdfactor | L14: PT jaar Franchise Cumulatief | M14: Deeltijd PG (ongemaximeerd) Cumulatief incl. negatief | N14: Deeltijd PG (ongemaximeerd) Cumulatief | O14: Max PT PG cumulatief | P14: Max FT PG cumulatief | Q14: PG Gemaximeerd | R14: Aanwas pensioengrondslag | T14: Premie
A16: januari | B16: 1 | C16: =IF(MONTH($B$3)>B16,0,IF(AND(MONTH($B$3)=B16,IF($B$4="",13,MONTH($B$4))=B16),(DAY(DATE(YEAR($B$4),MONTH($B$4),DAY($B$4))-DAY($B$3)+1)*(30/DAY(DATE(YEAR($B$4),MONTH($B$4),DAY(EOMONTH(DATE(YEAR($B$4),MONTH($B$4),1),0)))))),IF(MONTH($B$3)=B16,(DAY(DATE(YEAR($B$3),B16+1,0)-DAY($B$3)+1)*(30/DAY(DATE(YEAR($B$3),B16+1,0)))),IF(MONTH($B$4)=B16,(DAY(DATE(YEAR($B$4),MONTH($B$4),DAY($B$4)))*(30/DAY(DATE(YEAR($B$4),MONTH($B$4),DAY(EOMONTH(DATE(YEAR($B$4),MONTH($B$4),1),0)))))),IF(IF($B$4="",13,MONTH($B$4))<B16,0,(30/DAY(DATE(YEAR($B$4),B16,0)))*DAY(DATE(YEAR($B$4),B16,0))))))) -> 22.25806452 | D16: 78 | E16: 156 | F16: =IF(SUM(C16:$C$27)=0,"",E16*C16/30) -> 115.7419355 | G16: =FT_jaar_salaris -> € 45,000 | H16: =SUMPRODUCT($G$16:G16,$K$16:K16) -> € 30,325.50 | I16: € 200.00 | J16: =IF(C16=0,J15,SUM(I16)*12*30/C16+J15) -> € 3,234.78 | K16: =IFERROR(IF(SUM(C16:$C$27)=0,"",ROUND(D16/F16,4)),0) -> 0.67390 | L16: =IFERROR(SUMPRODUCT($B$7*$K$16:K16),0) -> € 7,971.56 | M16: =IF(K16="",M15,(H16+J16-J15-L16-H15+L15)*C16/30+M15) -> € 18,985.18 | N16: =MAX(0,M16) -> € 18,985.18 | O16: =IF(K16="",O15,($B$9-$B$7)*K16*C16/30+O15) -> € 45,743.11 | P16: =($B$9-$B$7)*SUM($C$16:C16)/30 -> € 67,878.19 | Q16: =MIN(N16,O16,P16) -> € 18,985.18 | R16: =(Q16-Q15)/12 -> € 1,582.10 | T16: =(Q16-Q15)/12*$B$10 -> € 371.79
A17: februari | B17: 2 | C17: 30 | D17: 156 | E17: 156 | F17: =IF(SUM(C17:$C$27)=0,"",E17*C17/30) -> 156 | G17: =FT_jaar_salaris -> € 45,000 | H17: =SUMPRODUCT($G$16:G17,$K$16:K17) -> € 75,325.50 | J17: € 3,234.78 | K17: =IFERROR(IF(SUM(C17:$C$27)=0,"",ROUND(D17/F17,4)),0) -> 1.00000 | L17: =IFERROR(SUMPRODUCT($B$7*$K$16:K17),L16) -> € 19,800.56 | M17: =IF(K17="",M16,(H17+J17-J16-L17-H16+L16)*C17/30+M16) -> € 52,156.18 | N17: =MAX(0,M17) -> € 52,156.18 | O17: =IF(K17="",O16,($B$9-$B$7)*K17*C17/30+O16) -> € 137,231.11 | P17: =($B$9-$B$7)*SUM($C$16:C17)/30 -> € 159,366.19 | Q17: =MIN(N17,O17,P17) -> € 52,156.18 | R17: =(Q17-Q16)/12 -> € 2,764.25 | T17: =(Q17-Q16)/12*$B$10 -> € 649.60
A18: maart | B18: 3 | C18: 30 | D18: 156 | E18: 156 | F18: =IF(SUM(C18:$C$27)=0,"",E18*C18/30) -> 156 | G18: € 45,000 | H18: =SUMPRODUCT($G$16:G18,$K$16:K18) -> € 120,325.50 | J18: € 3,234.78 | K18: =IFERROR(IF(SUM(C18:$C$27)=0,"",ROUND(D18/F18,4)),0) -> 1.00000 | L18: =IFERROR(SUMPRODUCT($B$7*$K$16:K18),L17) -> € 31,629.56 | M18: € 85,327.18 | N18: € 85,327.18 | O18: € 228,719.11 | P18: =($B$9-$B$7)*SUM($C$16:C18)/30 -> € 250,854.19 | Q18: € 85,327.18 | R18: =(Q18-Q17)/12 -> € 2,764.25 | T18: € 649.60
A19: april | B19: 4 | C19: 30 | D19: 156 | E19: 156 | F19: =IF(SUM(C19:$C$27)=0,"",E19*C19/30) -> 156 | G19: € 45,000 | H19: =SUMPRODUCT($G$16:G19,$K$16:K19) -> € 165,325.50 | J19: € 3,234.78 | K19: =IFERROR(IF(SUM(C19:$C$27)=0,"",ROUND(D19/F19,4)),0) -> 1.00000 | L19: =IFERROR(SUMPRODUCT($B$7*$K$16:K19),L18) -> € 43,458.56 | M19: € 118,498.18 | N19: € 118,498.18 | O19: € 320,207.11 | P19: =($B$9-$B$7)*SUM($C$16:C19)/30 -> € 342,342.19 | Q19: € 118,498.18 | R19: € 2,764.25 | T19: € 649.60
A20: mei | B20: 5 | C20: 30 | D20: 156 | E20: 156 | F20: =IF(SUM(C20:$C$27)=0,"",E20*C20/30) -> 156 | G20: € 45,000 | H20: =SUMPRODUCT($G$16:G20,$K$16:K20) -> € 210,325.50 | J20: € 3,234.78 | K20: =IFERROR(IF(SUM(C20:$C$27)=0,"",ROUND(D20/F20,4)),0) -> 1.00000 | L20: =IFERROR(SUMPRODUCT($B$7*$K$16:K20),L19) -> € 55,287.56 | M20: € 151,669.18 | N20: € 151,669.18 | O20: € 411,695.11 | P20: =($B$9-$B$7)*SUM($C$16:C20)/30 -> € 433,830.19 | Q20: € 151,669.18 | R20: € 2,764.25 | T20: € 649.60
A21: juni | B21: 6 | C21: 30 | D21: 156 | E21: 156 | F21: =IF(SUM(C21:$C$27)=0,"",E21*C21/30) -> 156 | G21: € 45,000 | H21: =SUMPRODUCT($G$16:G21,$K$16:K21) -> € 255,325.50 | J21: € 3,234.78 | K21: =IFERROR(IF(SUM(C21:$C$27)=0,"",ROUND(D21/F21,4)),0) -> 1.00000 | L21: =IFERROR(SUMPRODUCT($B$7*$K$16:K21),L20) -> € 67,116.56 | M21: € 184,840.18 | N21: € 184,840.18 | O21: € 503,183.11 | P21: =($B$9-$B$7)*SUM($C$16:C21)/30 -> € 525,318.19 | Q21: € 184,840.18 | R21: € 2,764.25 | T21: € 649.60
A22: juli | B22: 7 | C22: =IF(MONTH($B$3)>B22,0,IF(AND(MONTH($B$3)=B22,IF($B$4="",13,MONTH($B$4))=B22),(DAY(DATE(YEAR($B$4),MONTH($B$4),DAY($B$4))-DAY($B$3)+1)*(30/DAY(DATE(YEAR($B$4),MONTH($B$4),DAY(EOMONTH(DATE(YEAR($B$4),MONTH($B$4),1),0)))))),IF(MONTH($B$3)=B22,(DAY(DATE(YEAR($B$3),B22+1,0)-DAY($B$3)+1)*(30/DAY(DATE(YEAR($B$3),B22+1,0)))),IF(MONTH($B$4)=B22,(DAY(DATE(YEAR($B$4),MONTH($B$4),DAY($B$4)))*(30/DAY(DATE(YEAR($B$4),MONTH($B$4),DAY(EOMONTH(DATE(YEAR($B$4),MONTH($B$4),1),0)))))),IF(IF($B$4="",13,MONTH($B$4))<B22,0,(30/DAY(DATE(YEAR($B$4),B22,0)))*DAY(DATE(YEAR($B$4),B22,0))))))) -> 30 | D22: 156 | E22: 156 | F22: =IF(SUM(C22:$C$27)=0,"",E22*C22/30) -> 156 | G22: € 45,000 | H22: =SUMPRODUCT($G$16:G22,$K$16:K22) -> € 300,325.50 | J22: € 3,234.78 | K22: =IFERROR(IF(SUM(C22:$C$27)=0,"",ROUND(D22/F22,4)),0) -> 1.00000 | L22: =IFERROR(SUMPRODUCT($B$7*$K$16:K22),L21) -> € 78,945.56 | M22: € 218,011.18 | N22: € 218,011.18 | O22: € 594,671.11 | P22: =($B$9-$B$7)*SUM($C$16:C22)/30 -> € 616,806.19 | Q22: € 218,011.18 | R22: € 2,764.25 | T22: € 649.60
A23: augustus | B23: 8 | C23: =IF(MONTH($B$3)>B23,0,IF(AND(MONTH($B$3)=B23,IF($B$4="",13,MONTH($B$4))=B23),(DAY(DATE(YEAR($B$4),MONTH($B$4),DAY($B$4))-DAY($B$3)+1)*(30/DAY(DATE(YEAR($B$4),MONTH($B$4),DAY(EOMONTH(DATE(YEAR($B$4),MONTH($B$4),1),0)))))),IF(MONTH($B$3)=B23,(DAY(DATE(YEAR($B$3),B23+1,0)-DAY($B$3)+1)*(30/DAY(DATE(YEAR($B$3),B23+1,0)))),IF(MONTH($B$4)=B23,(DAY(DATE(YEAR($B$4),MONTH($B$4),DAY($B$4)))*(30/DAY(DATE(YEAR($B$4),MONTH($B$4),DAY(EOMONTH(DATE(YEAR($B$4),MONTH($B$4),1),0)))))),IF(IF($B$4="",13,MONTH($B$4))<B23,0,(30/DAY(DATE(YEAR($B$4),B23,0)))*DAY(DATE(YEAR($B$4),B23,0))))))) -> 30 | D23: 156 | E23: 156 | F23: =IF(SUM(C23:$C$27)=0,"",E23*C23/30) -> 156 | G23: € 45,000 | H23: =SUMPRODUCT($G$16:G23,$K$16:K23) -> € 345,325.50 | J23: € 3,234.78 | K23: =IFERROR(IF(SUM(C23:$C$27)=0,"",ROUND(D23/F23,4)),0) -> 1.00000 | L23: =IFERROR(SUMPRODUCT($B$7*$K$16:K23),L22) -> € 90,774.56 | M23: € 251,182.18 | N23: € 251,182.18 | O23: € 686,159.11 | P23: =($B$9-$B$7)*SUM($C$16:C23)/30 -> € 708,294.19 | Q23: € 251,182.18 | R23: € 2,764.25 | T23: € 649.60
A24: september | B24: 9 | C24: 30 | D24: 156 | E24: 156 | F24: =IF(SUM(C24:$C$27)=0,"",E24*C24/30) -> 156 | G24: € 45,000 | H24: =SUMPRODUCT($G$16:G24,$K$16:K24) -> € 390,325.50 | J24: € 3,234.78 | K24: =IFERROR(IF(SUM(C24:$C$27)=0,"",ROUND(D24/F24,4)),0) -> 1.00000 | L24: =IFERROR(SUMPRODUCT($B$7*$K$16:K24),L23) -> € 102,603.56 | M24: € 284,353.18 | N24: € 284,353.18 | O24: € 777,647.11 | P24: =($B$9-$B$7)*SUM($C$16:C24)/30 -> € 799,782.19 | Q24: € 284,353.18 | R24: € 2,764.25 | T24: € 649.60
A25: oktober | B25: 10 | C25: 30 | D25: 156 | E25: 156 | F25: =IF(SUM(C25:$C$27)=0,"",E25*C25/30) -> 156 | G25: € 45,000 | H25: =SUMPRODUCT($G$16:G25,$K$16:K25) -> € 435,325.50 | J25: € 3,234.78 | K25: =IFERROR(IF(SUM(C25:$C$27)=0,"",ROUND(D25/F25,4)),0) -> 1.00000 | L25: =IFERROR(SUMPRODUCT($B$7*$K$16:K25),L24) -> € 114,432.56 | M25: € 317,524.18 | N25: € 317,524.18 | O25: € 869,135.11 | P25: =($B$9-$B$7)*SUM($C$16:C25)/30 -> € 891,270.19 | Q25: € 317,524.18 | R25: € 2,764.25 | T25: € 649.60
A26: november | B26: 11 | C26: 30 | D26: 156 | E26: 156 | F26: =IF(SUM(C26:$C$27)=0,"",E26*C26/30) -> 156 | G26: € 45,000 | H26: =SUMPRODUCT($G$16:G26,$K$16:K26) -> € 480,325.50 | J26: € 3,234.78 | K26: =IFERROR(IF(SUM(C26:$C$27)=0,"",ROUND(D26/F26,4)),0) -> 1.00000 | L26: =IFERROR(SUMPRODUCT($B$7*$K$16:K26),L25) -> € 126,261.56 | M26: € 350,695.18 | N26: € 350,695.18 | O26: € 960,623.11 | P26: =($B$9-$B$7)*SUM($C$16:C26)/30 -> € 982,758.19 | Q26: € 350,695.18 | R26: € 2,764.25 | T26: € 649.60
A27: december | B27: 12 | C27: 30 | D27: 156 | E27: 156 | F27: =IF(SUM(C27:$C$27)=0,"",E27*C27/30) -> 156 | G27: € 45,000 | H27: =SUMPRODUCT($G$16:G27,$K$16:K27) -> € 525,325.50 | J27: € 3,234.78 | K27: =IFERROR(IF(SUM(C27:$C$27)=0,"",ROUND(D27/F27,4)),0) -> 1.00000 | L27: =IFERROR(SUMPRODUCT($B$7*$K$16:K27),L26) -> € 138,090.56 | M27: € 383,866.18 | N27: € 383,866.18 | O27: € 1,052,111.11 | P27: =($B$9-$B$7)*SUM($C$16:C27)/30 -> € 1,074,246.19 | Q27: € 383,866.18 | R27: € 2,764.25 | T27: € 649.60
B28: 13
A29: Totaal | T29: =MAX(SUM(T16:T27),0) -> € 7,517.38
A33: AP premie | Z33: 22 | AA33: € 17,092.00
A34: Maand | B34: Maand getal | C34: Genormeerd aantal dagen deelneming | D34: Verloonde uren voor regeling | E34: Normuren per maand | F34: Normuren deelneming | G34: Regelingloon | H34: Deeltijd regelingloon cumulatief | I34: Maandbedrag ORT | J34: Jaarbedrag ORT | K34: Definitieve deeltijdfactor | L34: FT Jaar Franchise Cumulatief | M34: Deeltijd PG Cumulatief incl. negatief | N34: Deeltijd PG Cumulatief | R34: Aanwas pensioengrondslag | T34: Premie
A36: januari | B36: 1 | C36: =C16 -> 22.25806452 | D36: =D16 -> 78 | E36: =E16 -> 156 | F36: 115.7419355 | G36: € 45,000 | H36: =H16 -> € 30,325.50 | I36: € 200.00 | J36: € 3,234.78 | K36: =K16 -> 67.390% | L36: =COUNTIF($C$36:C36,">0")*$B$8 -> € 20,108.00 | M36: =IF(K36="",M35,(H36+J36-J35-L36-H35+L35)*C36/30+M35) -> € 9,980.73 | N36: =MAX(0,M36) -> € 9,980.73 | R36: =(N36-N35)/12 -> € 831.73 | T36: =(N36-N35)/12*$B$11 -> € 4.16
A37: februari | B37: 2 | C37: 30 | D37: 156 | E37: 156 | F37: 156 | G37: € 45,000 | H37: € 75,325.50 | I37: 0 | J37: € 3,234.78 | K37: 100.000% | L37: =COUNTIF($C$36:C37,">0")*$B$8 -> € 40,216.00 | M37: =IF(K37="",M36,(H37+J37-J36-L37-H36+L36)*C37/30+M36) -> € 34,872.73 | N37: € 34,872.73 | R37: =(N37-N36)/12 -> € 2,074.33 | T37: € 10.37
A38: maart | B38: 3 | C38: 30 | D38: 156 | E38: 156 | F38: 156 | G38: € 45,000 | H38: € 120,325.50 | I38: 0 | J38: =J18 -> € 3,234.78 | K38: 100.000% | L38: =COUNTIF($C$36:C38,">0")*$B$8 -> € 60,324.00 | M38: € 59,764.73 | N38: € 59,764.73 | R38: € 2,074.33 | T38: € 10.37
A39: april | B39: 4 | C39: 30 | D39: 156 | E39: 156 | F39: 156 | G39: € 45,000 | H39: € 165,325.50 | I39: 0 | J39: € 3,234.78 | K39: 100.000% | L39: =COUNTIF($C$36:C39,">0")*$B$8 -> € 80,432.00 | M39: € 84,656.73 | N39: € 84,656.73 | R39: € 2,074.33 | T39: € 10.37
A40: mei | B40: 5 | C40: 30 | D40: 156 | E40: 156 | F40: 156 | G40: € 45,000 | H40: € 210,325.50 | I40: 0 | J40: € 3,234.78 | K40: 100.000% | L40: =COUNTIF($C$36:C40,">0")*$B$8 -> € 100,540.00 | M40: € 109,548.73 | N40: € 109,548.73 | R40: € 2,074.33 | T40: € 10.37
A41: juni | B41: 6 | C41: 30 | D41: 156 | E41: 156 | F41: 156 | G41: € 45,000 | H41: € 255,325.50 | I41: 0 | J41: € 3,234.78 | K41: 100.000% | L41: =COUNTIF($C$36:C41,">0")*$B$8 -> € 120,648.00 | M41: € 134,440.73 | N41: € 134,440.73 | R41: € 2,074.33 | T41: € 10.37
A42: juli | B42: 7 | C42: 30 | D42: 156 | E42: 156 | F42: 156 | G42: € 45,000 | H42: € 300,325.50 | I42: 0 | J42: € 3,234.78 | K42: 100.000% | L42: =COUNTIF($C$36:C42,">0")*$B$8 -> € 140,756.00 | M42: € 159,332.73 | N42: € 159,332.73 | R42: € 2,074.33 | T42: € 10.37
A43: augustus | B43: 8 | C43: 30 | D43: 156 | E43: 156 | F43: 156 | G43: € 45,000 | H43: € 345,325.50 | I43: 0 | J43: € 3,234.78 | K43: 100.000% | L43: =COUNTIF($C$36:C43,">0")*$B$8 -> € 160,864.00 | M43: € 184,224.73 | N43: € 184,224.73 | R43: € 2,074.33 | T43: € 10.37
A44: september | B44: 9 | C44: 30 | D44: 156 | E44: 156 | F44: 156 | G44: € 45,000 | H44: € 390,325.50 | I44: 0 | J44: € 3,234.78 | K44: 100.000% | L44: =COUNTIF($C$36:C44,">0")*$B$8 -> € 180,972.00 | M44: € 209,116.73 | N44: € 209,116.73 | R44: € 2,074.33 | T44: € 10.37
A45: oktober | B45: 10 | C45: 30 | D45: 156 | E45: 156 | F45: 156 | G45: € 45,000 | H45: € 435,325.50 | I45: 0 | J45: € 3,234.78 | K45: 100.000% | L45: =COUNTIF($C$36:C45,">0")*$B$8 -> € 201,080.00 | M45: € 234,008.73 | N45: € 234,008.73 | R45: € 2,074.33 | T45: € 10.37
A46: november | B46: 11 | C46: 30 | D46: 156 | E46: 156 | F46: 156 | G46: € 45,000 | H46: € 480,325.50 | I46: 0 | J46: € 3,234.78 | K46: 100.000% | L46: =COUNTIF($C$36:C46,">0")*$B$8 -> € 221,188.00 | M46: € 258,900.73 | N46: € 258,900.73 | R46: € 2,074.33 | T46: € 10.37
A47: december | B47: 12 | C47: 30 | D47: 156 | E47: 156 | F47: 156 | G47: € 45,000 | H47: € 525,325.50 | I47: 0 | J47: € 3,234.78 | K47: 100.000% | L47: =COUNTIF($C$36:C47,">0")*$B$8 -> € 241,296.00 | M47: € 283,792.73 | N47: € 283,792.73 | R47: € 2,074.33 | T47: € 10.37
B48: 13
A49: Totaal | T49: =MAX(SUM(T36:T47),0) -> € 118.25

Sheet 4-weken
A1: Invoer
A2: Geboortedatum dlnr | B2: 1986-01-01
A3: Datum aanvang deelneming | B3: 2017-01-01 | W3: Leeftijd | X3: Afgerond leeftijd | Z3: Leeftijd | AA3: Bedrag AP
A4: Datum einde deelneming | B4: 2017-12-31 | W4: =(YEAR(B3)-YEAR(B2))+((MONTH(B3)-MONTH(B2))/12)+((DAY(B3)-DAY(B2))/360) -> 31 | X4: =ROUNDDOWN(W4,0) -> 31 | Z4: 15 | AA4: € 6,032.00
A5: Regelingloon | B5: € 50,000.00
A6: Normuren per 4-weken | B6: 144
A7: Franchise OP/NP | B7: € 11,829.00 | Z7: 16 | AA7: € 6,937.00
A8: Franchise AP | B8: =IFERROR(VLOOKUP(X4,Z4:AA13,2,FALSE),20108) -> € 20,108.00 | Z8: 17 | AA8: € 7,943.00
A9: Maximum pensioengevend salaris | B9: € 103,317.00 | Z9: 18 | AA9: € 9,149.00
A10: Premie % OP/OP | B10: 23.5% | Z10: 19 | AA10: € 10,557.00
A11: Premie % AP | B11: 0.5% | Z11: 20 | AA11: € 12,367.00
Z12: 21 | AA12: € 14,578.00
A13: OP/NP premie | Z13: 22 | AA13: € 17,092.00
A14: Eerste dag periode | B14: periode getal | C14: Genormeerd aantal dagen deelneming | D14: Verloonde uren voor regeling | E14: Normuren per 4-weken | F14: Normuren deelneming | G14: Regelingloon | H14: Deeltijd regelingloon cumulatief | I14: 4-weken ORT | J14: Jaarbedrag ORT Cumulatief | K14: DTF | L14: PT jaar Franchise Cumulatief | M14: Deeltijd PG (ongemaximeerd) Cumulatief incl. negatief | N14: Deeltijd PG (ongemaximeerd) Cumulatief | O14: Max PT PG cumulatief | P14: Max FT PG cumulatief | Q14: PG Gemaximeerd | R14: Aanwas pensioengrondslag | T14: Premie
A16: 2017-01-02 | B16: 1 | C16: =MAX(0,MIN(28,$B$4-A16+1))-MIN(28,MAX(0,$B$3-A16)) -> 28 | D16: 144 | E16: =B$6 -> 144 | F16: =IF(SUM(C16:$C$28)=0,"",E16*C16/28) -> 144 | G16: =FT_jaar_salaris -> € 50,000 | H16: =SUMPRODUCT($G$16:G16,$K$16:K16) -> € 50,000.00 | I16: € 1,000.00 | J16: =IF(C16=0,J15,SUM(I16)*13*28/C16+J15) -> € 13,000.00 | K16: =IFERROR(IF(SUM(C16:$C$28)=0,"",ROUND(D16/F16,4)),0) -> 100.00% | L16: =IFERROR(SUMPRODUCT($B$7*$K$16:K16),0) -> € 11,829.00 | M16: =IF(K16="",M15,(H16+J16-J15-L16-H15+L15)*C16/28+M15) -> € 51,171.00 | N16: =MAX(0,M16) -> € 51,171.00 | O16: =IF(K16="",O15,($B$9-$B$7)*K16*C16/28+O15) -> € 91,488.00 | P16: =($B$9-$B$7)*SUM($C$16:C16)/28 -> € 91,488.00 | Q16: =MIN(N16,O16,P16) -> € 51,171.00 | R16: =(Q16-Q15)/13 -> € 3,936.23 | T16: =(Q16-Q15)/13*$B$10 -> € 925.01
A17: 2017-01-30 | B17: 2 | C17: =MAX(0,MIN(28,$B$4-A17+1))-MIN(28,MAX(0,$B$3-A17)) -> 28 | D17: 144 | E17: =B$6 -> 144 | F17: =IF(SUM(C17:$C$28)=0,"",E17*C17/28) -> 144 | G17: € 50,000 | H17: =SUMPRODUCT($G$16:G17,$K$16:K17) -> € 100,000.00 | J17: =IF(C17=0,J16,SUM(I17)*13*28/C17+J16) -> € 13,000.00 | K17: =IFERROR(IF(SUM(C17:$C$28)=0,"",ROUND(D17/F17,4)),0) -> 100.00% | L17: =IFERROR(SUMPRODUCT($B$7*$K$16:K17),0) -> € 23,658.00 | M17: =IF(K17="",M16,(H17+J17-J16-L17-H16+L16)*C17/28+M16) -> € 89,342.00 | N17: € 89,342.00 | O17: € 182,976.00 | P17: =($B$9-$B$7)*SUM($C$16:C17)/28 -> € 182,976.00 | Q17: € 89,342.00 | R17: =(Q17-Q16)/13 -> € 2,936.23 | T17: =(Q17-Q16)/13*$B$10 -> € 690.01
A18: 2017-02-27 | B18: 3 | C18: 28 | D18: 144 | E18: 144 | F18: =IF(SUM(C18:$C$28)=0,"",E18*C18/28) -> 144 | G18: € 50,000 | H18: =SUMPRODUCT($G$16:G18,$K$16:K18) -> € 150,000.00 | J18: =SUM($I$16:I18)*13 -> € 13,000.00 | K18: =IFERROR(IF(SUM(C18:$C$28)=0,"",ROUND(D18/F18,4)),0) -> 100.00% | L18: =IFERROR(SUMPRODUCT($B$7*$K$16:K18),0) -> € 35,487.00 | M18: =IF(K18="",M17,(H18+J18-J17-L18-H17+L17)*C18/28+M17) -> € 127,513.00 | N18: € 127,513.00 | O18: € 274,464.00 | P18: =($B$9-$B$7)*SUM($C$16:C18)/28 -> € 274,464.00 | Q18: € 127,513.00 | R18: € 2,936.23 | T18: € 690.01
A19: 2017-03-27 | B19: 4 | C19: 28 | D19: 144 | E19: 144 | F19: =IF(SUM(C19:$C$28)=0,"",E19*C19/28) -> 144 | G19: € 50,000 | H19: =SUMPRODUCT($G$16:G19,$K$16:K19) -> € 200,000.00 | J19: =SUM($I$16:I19)*13 -> € 13,000.00 | K19: =IFERROR(IF(SUM(C19:$C$28)=0,"",ROUND(D19/F19,4)),0) -> 100.00% | L19: =IFERROR(SUMPRODUCT($B$7*$K$16:K19),0) -> € 47,316.00 | M19: =IF(K19="",M18,(H19+J19-J18-L19-H18+L18)*C19/28+M18) -> € 165,684.00 | N19: € 165,684.00 | O19: € 365,952.00 | P19: =($B$9-$B$7)*SUM($C$16:C19)/28 -> € 365,952.00 | Q19: € 165,684.00 | R19: € 2,936.23 | T19: € 690.01
A20: 2017-04-24 | B20: 5 | C20: 28 | D20: 144 | E20: 144 | F20: =IF(SUM(C20:$C$28)=0,"",E20*C20/28) -> 144 | G20: € 50,000 | H20: =SUMPRODUCT($G$16:G20,$K$16:K20) -> € 250,000.00 | J20: =SUM($I$16:I20)*13 -> € 13,000.00 | K20: =IFERROR(IF(SUM(C20:$C$28)=0,"",ROUND(D20/F20,4)),0) -> 100.00% | L20: =IFERROR(SUMPRODUCT($B$7*$K$16:K20),0) -> € 59,145.00 | M20: =IF(K20="",M19,(H20+J20-J19-L20-H19+L19)*C20/28+M19) -> € 203,855.00 | N20: € 203,855.00 | O20: € 457,440.00 | P20: =($B$9-$B$7)*SUM($C$16:C20)/28 -> € 457,440.00 | Q20: € 203,855.00 | R20: € 2,936.23 | T20: € 690.01
A21: 2017-05-22 | B21: 6 | C21: 28 | D21: 144 | E21: 144 | F21: =IF(SUM(C21:$C$28)=0,"",E21*C21/28) -> 144 | G21: € 50,000 | H21: =SUMPRODUCT($G$16:G21,$K$16:K21) -> € 300,000.00 | J21: =SUM($I$16:I21)*13 -> € 13,000.00 | K21: =IFERROR(IF(SUM(C21:$C$28)=0,"",ROUND(D21/F21,4)),0) -> 100.00% | L21: =IFERROR(SUMPRODUCT($B$7*$K$16:K21),0) -> € 70,974.00 | M21: € 242,026.00 | N21: € 242,026.00 | O21: € 548,928.00 | P21: =($B$9-$B$7)*SUM($C$16:C21)/28 -> € 548,928.00 | Q21: € 242,026.00 | R21: € 2,936.23 | T21: € 690.01
A22: 2017-06-19 | B22: 7 | C22: 28 | D22: 144 | E22: 144 | F22: =IF(SUM(C22:$C$28)=0,"",E22*C22/28) -> 144 | G22: € 50,000 | H22: =SUMPRODUCT($G$16:G22,$K$16:K22) -> € 350,000.00 | J22: =SUM($I$16:I22)*13 -> € 13,000.00 | K22: =IFERROR(IF(SUM(C22:$C$28)=0,"",ROUND(D22/F22,4)),0) -> 100.00% | L22: =IFERROR(SUMPRODUCT($B$7*$K$16:K22),0) -> € 82,803.00 | M22: € 280,197.00 | N22: € 280,197.00 | O22: € 640,416.00 | P22: =($B$9-$B$7)*SUM($C$16:C22)/28 -> € 640,416.00 | Q22: € 280,197.00 | R22: € 2,936.23 | T22: € 690.01
A23: 2017-07-17 | B23: 8 | C23: 28 | D23: 144 | E23: 144 | F23: =IF(SUM(C23:$C$28)=0,"",E23*C23/28) -> 144 | G23: € 50,000 | H23: =SUMPRODUCT($G$16:G23,$K$16:K23) -> € 400,000.00 | J23: =SUM($I$16:I23)*13 -> € 13,000.00 | K23: =IFERROR(IF(SUM(C23:$C$28)=0,"",ROUND(D23/F23,4)),0) -> 100.00% | L23: =IFERROR(SUMPRODUCT($B$7*$K$16:K23),0) -> € 94,632.00 | M23: € 318,368.00 | N23: € 318,368.00 | O23: € 731,904.00 | P23: =($B$9-$B$7)*SUM($C$16:C23)/28 -> € 731,904.00 | Q23: € 318,368.00 | R23: € 2,936.23 | T23: € 690.01
A24: 2017-08-14 | B24: 9 | C24: 28 | D24: 144 | E24: 144 | F24: =IF(SUM(C24:$C$28)=0,"",E24*C24/28) -> 144 | G24: € 50,000 | H24: =SUMPRODUCT($G$16:G24,$K$16:K24) -> € 450,000.00 | J24: =SUM($I$16:I24)*13 -> € 13,000.00 | K24: =IFERROR(IF(SUM(C24:$C$28)=0,"",ROUND(D24/F24,4)),0) -> 100.00% | L24: =IFERROR(SUMPRODUCT($B$7*$K$16:K24),0) -> € 106,461.00 | M24: € 356,539.00 | N24: € 356,539.00 | O24: € 823,392.00 | P24: =($B$9-$B$7)*SUM($C$16:C24)/28 -> € 823,392.00 | Q24: € 356,539.00 | R24: € 2,936.23 | T24: € 690.01
A25: 2017-09-11 | B25: 10 | C25: 28 | D25: 144 | E25: 144 | F25: =IF(SUM(C25:$C$28)=0,"",E25*C25/28) -> 144 | G25: € 50,000 | H25: =SUMPRODUCT($G$16:G25,$K$16:K25) -> € 500,000.00 | J25: =SUM($I$16:I25)*13 -> € 13,000.00 | K25: =IFERROR(IF(SUM(C25:$C$28)=0,"",ROUND(D25/F25,4)),0) -> 100.00% | L25: =IFERROR(SUMPRODUCT($B$7*$K$16:K25),0) -> € 118,290.00 | M25: € 394,710.00 | N25: € 394,710.00 | O25: € 914,880.00 | P25: =($B$9-$B$7)*SUM($C$16:C25)/28 -> € 914,880.00 | Q25: € 394,710.00 | R25: € 2,936.23 | T25: € 690.01
A26: 2017-10-09 | B26: 11 | C26: 28 | D26: 144 | E26: 144 | F26: =IF(SUM(C26:$C$28)=0,"",E26*C26/28) -> 144 | G26: € 50,000 | H26: =SUMPRODUCT($G$16:G26,$K$16:K26) -> € 550,000.00 | J26: =SUM($I$16:I26)*13 -> € 13,000.00 | K26: =IFERROR(IF(SUM(C26:$C$28)=0,"",ROUND(D26/F26,4)),0) -> 100.00% | L26: =IFERROR(SUMPRODUCT($B$7*$K$16:K26),0) -> € 130,119.00 | M26: € 432,881.00 | N26: € 432,881.00 | O26: € 1,006,368.00 | P26: =($B$9-$B$7)*SUM($C$16:C26)/28 -> € 1,006,368.00 | Q26: € 432,881.00 | R26: € 2,936.23 | T26: € 690.01
A27: 2017-11-06 | B27: 12 | C27: 28 | D27: 144 | E27: 144 | F27: =IF(SUM(C27:$C$28)=0,"",E27*C27/28) -> 144 | G27: € 50,000 | H27: =SUMPRODUCT($G$16:G27,$K$16:K27) -> € 600,000.00 | J27: =SUM($I$16:I27)*13 -> € 13,000.00 | K27: =IFERROR(IF(SUM(C27:$C$28)=0,"",ROUND(D27/F27,4)),0) -> 100.00% | L27: =IFERROR(SUMPRODUCT($B$7*$K$16:K27),0) -> € 141,948.00 | M27: =IF(K27="",M26,(H27+J27-J26-L27-H26+L26)*C27/28+M26) -> € 471,052.00 | N27: € 471,052.00 | O27: € 1,097,856.00 | P27: =($B$9-$B$7)*SUM($C$16:C27)/28 -> € 1,097,856.00 | Q27: € 471,052.00 | R27: € 2,936.23 | T27: € 690.01
A28: 2017-12-04 | B28: 13 | C28: 28 | D28: 144 | E28: 144 | F28: =IF(SUM(C$28:$C28)=0,"",E28*C28/28) -> 144 | G28: € 50,000 | H28: =SUMPRODUCT($G$16:G28,$K$16:K28) -> € 650,000.00 | J28: =SUM($I$16:I28)*13 -> € 13,000.00 | K28: =IFERROR(IF(SUM(C$28:$C28)=0,"",ROUND(D28/F28,4)),0) -> 100.00% | L28: =IFERROR(SUMPRODUCT($B$7*$K$16:K28),0) -> € 153,777.00 | M28: =IF(K28="",M27,(H28+J28-J27-L28-H27+L27)*C28/28+M27) -> € 509,223.00 | N28: € 509,223.00 | O28: € 1,189,344.00 | P28: =($B$9-$B$7)*SUM($C$16:C28)/28 -> € 1,189,344.00 | Q28: € 509,223.00 | R28: € 2,936.23 | T28: € 690.01
A29: =A28+28 -> 43101 | B29: 13
A30: Totaal | T30: =MAX(SUM(T16:T28),0) -> € 9,205.19
A34: AP premie | Z34: 22 | AA34: € 17,092.00
A35: Eerste dag periode | B35: periode getal | C35: Genormeerd aantal dagen deelneming | D35: Verloonde uren voor regeling | E35: Normuren per 4-weken | F35: Normuren deelneming | G35: Regelingloon | H35: Deeltijd regelingloon cumulatief | I35: 4-weken ORT | J35: Jaarbedrag ORT Cumulatief | K35: DTF | L35: PT jaar Franchise Cumulatief | M35: Deeltijd PG Cumulatief incl. negatief | N35: Deeltijd PG Cumulatief | R35: Aanwas pensioengrondslag | T35: Premie
A37: =A16 -> 2017-01-02 | B37: 1 | C37: =C16 -> 28 | D37: 144 | E37: 144 | F37: 144 | G37: € 50,000 | H37: € 50,000.00 | I37: =I16 -> € 1,000.00 | J37: € 13,000.00 | K37: 100.000% | L37: =COUNTIF($C$37:C37,">0")*$B$8 -> € 20,108.00 | M37: =IF(K37="",M36,(H37+J37-J36-L37-H36+L36)*C37/28+M36) -> € 42,892.00 | N37: =MAX(0,M37) -> € 42,892.00 | R37: =(N37-N36)/13 -> € 3,299.38 | T37: =(N37-N36)/13*$B$11 -> € 16.50
A38: =A17 -> 2017-01-30 | B38: 2 | C38: 28 | D38: 144 | E38: 144 | F38: 144 | G38: € 50,000 | H38: € 100,000.00 | I38: =I17 -> 0 | J38: € 13,000.00 | K38: 100.000% | L38: =COUNTIF($C$37:C38,">0")*$B$8 -> € 40,216.00 | M38: =IF(K38="",M37,(H38+J38-J37-L38-H37+L37)*C38/28+M37) -> € 72,784.00 | N38: € 72,784.00 | R38: =(N38-N37)/13 -> € 2,299.38 | T38: € 11.50
A39: 2017-02-27 | B39: 3 | C39: 28 | D39: 144 | E39: 144 | F39: 144 | G39: € 50,000 | H39: € 150,000.00 | I39: 0 | J39: € 13,000.00 | K39: 100.000% | L39: =COUNTIF($C$37:C39,">0")*$B$8 -> € 60,324.00 | M39: € 102,676.00 | N39: € 102,676.00 | R39: € 2,299.38 | T39: € 11.50
A40: 2017-03-27 | B40: 4 | C40: 28 | D40: 144 | E40: 144 | F40: 144 | G40: € 50,000 | H40: € 200,000.00 | I40: 0 | J40: € 13,000.00 | K40: 100.000% | L40: =COUNTIF($C$37:C40,">0")*$B$8 -> € 80,432.00 | M40: € 132,568.00 | N40: € 132,568.00 | R40: € 2,299.38 | T40: € 11.50
A41: 2017-04-24 | B41: 5 | C41: 28 | D41: 144 | E41: 144 | F41: 144 | G41: € 50,000 | H41: € 250,000.00 | I41: 0 | J41: € 13,000.00 | K41: 100.000% | L41: =COUNTIF($C$37:C41,">0")*$B$8 -> € 100,540.00 | M41: € 162,460.00 | N41: € 162,460.00 | R41: € 2,299.38 | T41: € 11.50
A42: 2017-05-22 | B42: 6 | C42: 28 | D42: 144 | E42: 144 | F42: 144 | G42: € 50,000 | H42: € 300,000.00 | I42: 0 | J42: € 13,000.00 | K42: 100.000% | L42: =COUNTIF($C$37:C42,">0")*$B$8 -> € 120,648.00 | M42: € 192,352.00 | N42: € 192,352.00 | R42: € 2,299.38 | T42: € 11.50
A43: 2017-06-19 | B43: 7 | C43: 28 | D43: 144 | E43: 144 | F43: 144 | G43: € 50,000 | H43: € 350,000.00 | I43: 0 | J43: € 13,000.00 | K43: 100.000% | L43: =COUNTIF($C$37:C43,">0")*$B$8 -> € 140,756.00 | M43: € 222,244.00 | N43: € 222,244.00 | R43: € 2,299.38 | T43: € 11.50
A44: 2017-07-17 | B44: 8 | C44: 28 | D44: 144 | E44: 144 | F44: 144 | G44: € 50,000 | H44: € 400,000.00 | I44: 0 | J44: € 13,000.00 | K44: 100.000% | L44: =COUNTIF($C$37:C44,">0")*$B$8 -> € 160,864.00 | M44: € 252,136.00 | N44: € 252,136.00 | R44: € 2,299.38 | T44: € 11.50
A45: 2017-08-14 | B45: 9 | C45: 28 | D45: 144 | E45: 144 | F45: 144 | G45: € 50,000 | H45: € 450,000.00 | I45: 0 | J45: € 13,000.00 | K45: 100.000% | L45: =COUNTIF($C$37:C45,">0")*$B$8 -> € 180,972.00 | M45: € 282,028.00 | N45: € 282,028.00 | R45: € 2,299.38 | T45: € 11.50
A46: 2017-09-11 | B46: 10 | C46: 28 | D46: 144 | E46: 144 | F46: 144 | G46: € 50,000 | H46: € 500,000.00 | I46: 0 | J46: € 13,000.00 | K46: 100.000% | L46: =COUNTIF($C$37:C46,">0")*$B$8 -> € 201,080.00 | M46: € 311,920.00 | N46: € 311,920.00 | R46: € 2,299.38 | T46: € 11.50
A47: 2017-10-09 | B47: 11 | C47: 28 | D47: 144 | E47: 144 | F47: 144 | G47: € 50,000 | H47: € 550,000.00 | I47: 0 | J47: € 13,000.00 | K47: 100.000% | L47: =COUNTIF($C$37:C47,">0")*$B$8 -> € 221,188.00 | M47: € 341,812.00 | N47: € 341,812.00 | R47: € 2,299.38 | T47: € 11.50
A48: 2017-11-06 | B48: 12 | C48: 28 | D48: 144 | E48: 144 | F48: 144 | G48: € 50,000 | H48: € 600,000.00 | I48: 0 | J48: € 13,000.00 | K48: 100.000% | L48: =COUNTIF($C$37:C48,">0")*$B$8 -> € 241,296.00 | M48: € 371,704.00 | N48: € 371,704.00 | R48: € 2,299.38 | T48: € 11.50
A49: 2017-12-04 | B49: 13 | C49: 28 | D49: 144 | E49: 144 | F49: 144 | G49: € 50,000 | H49: € 650,000.00 | I49: 0 | J49: € 13,000.00 | K49: 100.000% | L49: =COUNTIF($C$37:C49,">0")*$B$8 -> € 261,404.00 | M49: € 401,596.00 | N49: € 401,596.00 | R49: € 2,299.38 | T49: € 11.50
A50: 43101 | B50: 13
A51: Totaal | T51: =MAX(SUM(T37:T49),0) -> € 154.46

Sheet Gewogen salaris
B2: Fultime salaris bij ziekte berekenen
B3: FT jaar salaris per 1-1 | C3: € 32,250.00
B5: Bereken gewogen salaris per maand of per 4 weken
B6: Start datum | C6: Einddatum | D6: Looptijd | E6: Korting | F6: Gewogen salaris
B7: 2017-06-19 | C7: 2017-06-30 | D7: =IF(B7="","",DAY(C7)-DAY(B7)+1) -> 12 | E7: 0% | F7: =IFERROR((100%-E7)*$C$3*(D7/DAY(EOMONTH(B7,0))),"") -> € 12,900.00
B8: 2017-07-01 | C8: 2017-07-16 | D8: =IF(B8="","",DAY(C8)-DAY(B8)+1) -> 16 | E8: 30% | F8: =IFERROR((100%-E8)*$C$3*(D8/DAY(EOMONTH(B8,0))),"") -> € 11,651.61
F9: =IFERROR((100%-E9)*$C$3*(D9/DAY(EOMONTH(B9,0))),"") -> 
D26: Gewogen salaris: | F26: =CEILING(SUM(F7:F25),1) -> € 24,552.00

Sheet Versiebeheer
A1: Versie | B1: Datum | C1: Wijzigingen
A2: 1.3 | B2: 2016-09-08 | C2: Samenvoegen Maand en 4-weken in 1 sheet/2 tabbladen
A3: 1.3 | B3: 2016-09-08 | C3: Tekstueel: Maximaal Salaris --> Maximaal Pensioengevend Salaris
A4: 1.3 | B4: 2016-09-08 | C4: Tekstueel: Gewerkte uren --> Verloonde uren voor pensioen
A5: 1.3 | B5: 2016-09-08 | C5: Formule: <4-weken> Totaal premie (T30) (T16:T27) --> (T16:T28)
A6: 1.3 | B6: 2016-09-08 | C6: Formule: <4-weken> Aanwas/12 --> Aanwas/13
A7: 1.3 | B7: 2016-09-08 | C7: Formule: <4-weken> DTF som(C16:C27) --> Som(C16:C28)
A8: 1.3 | B8: 2016-09-08 | C8: Formule: <4-weken> Norm periode som(C16:C27) --> Som(C16:C28)
A9: 1.4 | B9: 2016-09-08 | C9: formule "PG (ongemaximeerd) Cumulatief incl. negatief": ORT NIET maal (dagen deelneming (volgens tieland) / 30)
A10: 1.41 | B10: 2016-09-12 | C10: Aanpassing versie 1.4 teruggedraait en formule Jaar ORT aangepast, In gebroken maanden wordt de ORT eerst omgerekend naar hele maanden vervolgens op jaarbasis
A11: 1.41 | B11: 2016-12-06 | C11: Blad "gewogen salaris" cell F26: uitkomst afronden in gehele euro's
A12: 1.5 | B12: 2016-12-15 | C12: 2017 parameters toegevoegd
A13: 1.51 | B13: 2016-12-16 | C13: Waarden: Tijdvakken 4-weken 2017 (+ tabblad Tijdvakken); Formule: normuren per tijdvak (B6) worden overgenomen per tijdvak (E16:E28); Waarden: bij 4-weken is normuren per week o.b.v. 36 u/wk is 144u p. tijdvak (i.p.v. 160); Waarden: voorbeeld gewogen salaris aangepast naar 2017; Formule: waarden overnemen regelingloon per tijdvak (G16:G27); Formule: Waarden overnemen ORT (I37:I38)

Sheet Tijdvakken
A1: Tijdvak | B1: Tijdvakcode | C1: Ingangsdatum | D1: Einddatum | E1: Uiterste aangiftedatum PFZW | K1: Loontijdvak | M1: Aangiftetijdvak
A2: Periode 1 | B2: 7710 | C2: 2017-01-01 | D2: 2017-01-29 | E2: =D2+10 -> 2017-02-08 | J2: 1 | K2: ma 2 januari tot en met zo 29 januari | M2: zo 1 januari tot en met zo 29 januari
A3: Periode 2 | B3: 7720 | C3: 2017-01-30 | D3: 2017-02-26 | E3: =D3+10 -> 2017-03-08 | J3: 2 | K3: ma 30 januari tot en met zo 26 februari | M3: ma 30 januari tot en met zo 26 februari
A4: Periode 3 | B4: 7730 | C4: 2017-02-27 | D4: 2017-03-26 | E4: 2017-04-05 | J4: 3 | K4: ma 27 februari tot en met zo 26 maart | M4: ma 27 februari tot en met zo 26 maart
A5: Periode 4 | B5: 7740 | C5: 2017-03-27 | D5: 2017-04-23 | E5: 2017-05-03 | J5: 4 | K5: ma 27 maart tot en met zo 23 april | M5: ma 27 maart tot en met zo 23 april
A6: Periode 5 | B6: 7750 | C6: 2017-04-24 | D6: 2017-05-21 | E6: 2017-05-31 | J6: 5 | K6: ma 24 april tot en met zo 21 mei | M6: ma 24 april tot en met zo 21 mei
A7: Periode 6 | B7: 7760 | C7: 2017-05-22 | D7: 2017-06-18 | E7: 2017-06-28 | J7: 6 | K7: ma 22 mei tot en met zo 18 juni | M7: ma 22 mei tot en met zo 18 juni
A8: Periode 7 | B8: 7770 | C8: 2017-06-19 | D8: 2017-07-16 | E8: 2017-07-26 | J8: 7 | K8: ma 19 juni tot en met zo 16 juli | M8: ma 19 juni tot en met zo 16 juli
A9: Periode 8 | B9: 7780 | C9: 2017-07-17 | D9: 2017-08-13 | E9: 2017-08-23 | J9: 8 | K9: ma 17 juli tot en met zo 13 augustus | M9: ma 17 juli tot en met zo 13 augustus
A10: Periode 9 | B10: 7790 | C10: 2017-08-14 | D10: 2017-09-10 | E10: 2017-09-20 | J10: 9 | K10: ma 14 augustus tot en met zo 10 september | M10: ma 14 augustus tot en met zo 10 september
A11: Periode 10 | B11: 7800 | C11: 2017-09-11 | D11: 2017-10-08 | E11: 2017-10-18 | J11: 10 | K11: ma 11 september tot en met zo 8 oktober | M11: ma 11 september tot en met zo 8 oktober
A12: Periode 11 | B12: 7810 | C12: 2017-10-09 | D12: 2017-11-05 | E12: 2017-11-15 | J12: 11 | K12: ma 9 oktober tot en met zo 5 november | M12: ma 9 oktober tot en met zo 5 november
A13: Periode 12 | B13: 7820 | C13: 2017-11-06 | D13: 2017-12-03 | E13: 2017-12-13 | J13: 12 | K13: ma 6 november tot en met zo 3 december | M13: ma 6 november tot en met zo 3 december
A14: Periode 13 | B14: 7830 | C14: 2017-12-04 | D14: 2017-12-31 | E14: 2018-01-10 | J14: 13 | K14: ma 4 december tot en met zo 31 december | M14: ma 4 december tot en met zo 31 december
A18: Tijdvak | B18: Tijdvakcode | C18: Ingangsdatum | D18: Einddatum | E18: Uiterste aangiftedatum PFZW
A19: Januari | B19: 7010 | C19: 2017-01-01 | D19: 2017-01-31 | E19: =D19+10 -> 2017-02-10
A20: Februari | B20: 7020 | C20: 2017-02-01 | D20: 2017-02-28 | E20: =D20+10 -> 2017-03-10
A21: Maart | B21: 7030 | C21: 2017-03-01 | D21: 2017-03-31 | E21: 2017-04-10
A22: April | B22: 7040 | C22: 2017-04-01 | D22: 2017-04-30 | E22: 2017-05-10
A23: Mei | B23: 7050 | C23: 2017-05-01 | D23: 2017-05-31 | E23: 2017-06-10
A24: Juni | B24: 7060 | C24: 2017-06-01 | D24: 2017-06-30 | E24: 2017-07-10
A25: Juli | B25: 7070 | C25: 2017-07-01 | D25: 2017-07-31 | E25: 2017-08-10
A26: Augustus | B26: 7080 | C26: 2017-08-01 | D26: 2017-08-31 | E26: 2017-09-10
A27: September | B27: 7090 | C27: 2017-09-01 | D27: 2017-09-30 | E27: 2017-10-10
A28: Oktober | B28: 7100 | C28: 2017-10-01 | D28: 2017-10-31 | E28: 2017-11-10
A29: November | B29: 7110 | C29: 2017-11-01 | D29: 2017-11-30 | E29: 2017-12-10
A30: December | B30: 7120 | C30: 2017-12-01 | D30: 2017-12-31 | E30: 2018-01-10
